bitfinex-derivatives/quotes_ETHF0:USTF0_20240904
["timestamp","ask_amount","ask_price","bid_price","bid_amount"]
[1725461226790,0.41129,2431.5,2430.8,3.2078]
[1725461227292,3.207,2431.6,2430.9,0.00617754]
[1725461227293,0.00617754,2431.4,2430.9,0.00617754]
[1725461227487,0.41133,2431.3,2430.9,0.00617754]
[1725461227689,0.00617754,2431.4,2430.9,0.00617754]
[1725461228197,0.00617754,2431.4,2431.3,0.41132]
[1725461228495,0.00617754,2431.4,2431.3,4.1128]
[1725461229093,10.11897754,2431.4,2430.9,0.00617754]
[1725461229388,0.41748754,2431.4,2430.9,0.00617754]
[1725461229588,0.41747754,2431.4,2430.9,0.00617754]
[1725461229785,0.00617754,2431.4,2430.9,0.00617754]
[1725461229986,0.41135,2431.2,2430.9,0.00617754]
[1725461230292,4.1136,2431.3,2430.9,0.00617754]
[1725461230493,0.00617754,2431.4,2430.9,0.00617754]
[1725461230694,4.1136,2431.3,2430.9,0.00617754]
[1725461230887,0.00617754,2431.4,2430.9,0.00617754]
[1725461231192,0.41137,2431.0,2430.9,0.00617754]
[1725461231582,10.52497,2431.0,2430.9,0.00617754]
[1725461231795,4.1136,2431.0,2430.9,0.00617754]
[1725461232092,11.5534,2431.0,2430.9,7.54e-06]
[1725461232295,11.43823,2431.0,2430.9,7.54e-06]
[1725461232592,1.02868,2430.4,2429.7,3.2078]
[1725461232795,22.5033,2430.3,2429.7,3.2078]
[1725461232983,0.41157,2429.9,2429.7,3.2078]
[1725461233185,23.53206,2430.3,2429.7,3.2078]
[1725461233186,0.41157,2429.8,2429.7,3.2078]
[1725461233493,0.41157,2429.8,2429.5,0.00617754]
[1725461233494,0.41161,2429.6,2429.5,0.00617754]
[1725461233693,4.116,2429.6,2429.5,0.00617754]
[1725461234083,4.52761,2429.6,2429.5,0.00617754]
[1725461234490,0.41161,2429.6,2429.5,0.00617754]
[1725461234701,4.52761,2429.6,2429.5,0.00617754]
[1725461234997,0.00617754,2430.0,2429.5,13.09217754]
[1725461235303,0.00617754,2430.0,2429.9,3.2078]
[1725461235594,0.00617754,2430.0,2429.9,9.61936]
[1725461235804,3.6111,2431.2,2429.9,9.61936]
[1725461235805,1.59785292,2431.8,2430.0,1.02883]
[1725461236094,0.41133,2431.3,2431.0,3.2078]
[1725461236305,0.41135,2431.1,2431.0,3.2078]
[1725461236487,0.41134,2431.2,2430.7,3.2078]
[1725461236689,1.02823,2431.5,2430.7,3.2078]
[1725461236886,0.20602394,2431.5,2430.7,3.2078]
[1725461237090,0.20602394,2431.5,2429.6,2.97]
[1725461237091,0.00617754,2431.3,2430.2,3.2078]
[1725461237302,0.41144,2430.6,2430.5,0.00617754]
[1725461237593,6.41144,2430.6,2430.5,0.00617754]
[1725461237795,4.52584,2430.6,2430.5,0.00617754]
[1725461238196,3.21397754,2431.3,2430.5,0.00617754]
[1725461238389,0.41144,2430.6,2430.5,0.00617754]
[1725461238803,4.52584,2430.6,2430.5,0.00617754]
[1725461239094,2.97,2431.2,2430.5,0.00617754]
[1725461239298,0.00617754,2431.3,2430.5,3.21397754]
[1725461239492,0.41137,2431.0,2430.5,3.21397754]
[1725461239692,0.00617754,2431.3,2430.5,3.21397754]
[1725461240002,0.41144,2430.6,2430.5,3.21397754]
[1725461240201,1.44004,2430.6,2430.5,0.00617754]
[1725461240503,4.52584,2430.6,2430.5,0.00617754]
[1725461240691,4.52584,2430.6,2429.8,3.2078]
[1725461240692,10.1144,2430.6,2429.8,3.2078]
[1725461240887,0.4033,2430.8,2429.8,3.2078]
[1725461240888,1.02864,2430.5,2429.8,3.2078]
[1725461241091,1.02871,2430.4,2429.8,3.2078]
[1725461241298,1.02864,2430.5,2429.8,3.2078]
[1725461241598,1.0286,2430.6,2429.9,0.00617754]
[1725461241793,0.41154,2430.0,2429.9,0.00617754]
[1725461242501,4.52674,2430.0,2429.9,0.00617754]
[1725461242693,23.12877,2430.3,2429.9,0.00617754]
[1725461242900,0.41154,2430.0,2429.9,0.00617754]
[1725461243296,0.4115,2430.2,2429.9,4.12137754]
[1725461243496,0.4115,2430.2,2430.0,3.2078]
[1725461243812,1.02865,2430.5,2430.0,3.2078]
[1725461243813,0.41145,2430.5,2430.0,3.2078]
[1725461244001,1.02842,2431.1,2430.3,3.2078]
[1725461244305,0.41141,2430.8,2430.6,3.2078]
[1725461244692,0.41142,2430.7,2430.6,3.2078]
[1725461244898,0.41149,2430.3,2430.2,3.2078]
[1725461245700,0.41154,2430.0,2429.9,0.00617754]
[1725461246390,0.3926,2430.8,2429.9,3.21397754]
[1725461246589,0.41154,2430.0,2429.9,3.21397754]
[1725461247295,0.41154,2430.0,2429.9,0.00617754]
[1725461247296,1.44039,2430.0,2429.9,0.00617754]
[1725461247526,0.41154,2430.0,2429.9,0.00617754]
[1725461248088,4.52674,2430.0,2429.9,0.00617754]
[1725461248291,0.4048,2430.5,2429.9,3.21397754]
[1725461248292,1.43347,2430.5,2429.9,3.21397754]
[1725461248491,0.41152,2430.1,2429.9,3.21397754]
[1725461248691,1.02843,2431.0,2430.0,4.1152]
[1725461248904,3.21397754,2431.3,2430.8,3.2078]
[1725461248905,0.00617754,2431.3,2430.8,3.2078]
[1725461249100,0.41139,2430.9,2430.8,3.2078]
[1725461250101,1.02838,2431.2,2430.5,3.2078]
[1725461250396,0.41144,2430.6,2430.5,3.2078]
[1725461250598,0.41149,2430.3,2430.2,3.2078]
[1725461250792,1.02849,2430.9,2430.2,3.2078]
[1725461250994,0.41149,2430.3,2430.2,3.2078]
[1725461251390,0.41149,2430.3,2429.9,0.00617754]
[1725461251391,0.41154,2430.0,2429.9,0.00617754]
[1725461251594,0.41153,2430.1,2429.9,0.00617754]
[1725461252406,3.2078,2430.7,2429.9,0.00617754]
[1725461252697,1.02856,2430.8,2430.4,3.2078]
[1725461252898,0.41144,2430.6,2430.4,3.2078]
[1725461253205,0.41145,2430.5,2430.4,3.2078]
[1725461253394,1.02844,2431.0,2429.9,0.00617754]
[1725461253395,4.1144,2430.7,2430.1,3.2078]
[1725461253595,1.02839,2431.1,2430.4,3.2078]
[1725461253995,0.41145,2430.5,2430.4,3.2078]
[1725461254198,4.1136,2431.0,2429.9,3.21397754]
[1725461254400,6.1778,2431.1,2429.9,3.21397754]
[1725461254401,0.41153,2430.1,2429.9,3.21397754]
[1725461254596,1.02873,2430.3,2429.9,3.21397754]
[1725461254895,0.41154,2430.0,2429.9,3.21397754]
[1725461255098,1.44039,2430.0,2429.9,0.00617754]
[1725461255293,4.52674,2430.0,2429.9,0.00617754]
[1725461255500,11.55559,2430.0,2429.9,0.00617754]
[1725461255705,10.52674,2430.0,2429.9,0.00617754]
[1725461255910,11.55559,2430.0,2429.9,0.00617754]
[1725461256297,12.58444,2430.0,2429.9,0.00617754]
[1725461256604,12.58444,2430.0,2429.3,3.2078]
[1725461256605,0.41164,2429.4,2429.3,3.2078]
[1725461256798,1.44075,2429.4,2429.3,3.2078]
[1725461256999,11.55675,2429.4,2429.3,3.2078]
[1725461257205,0.41173,2428.9,2428.5,3.2078]
[1725461257499,0.41174,2428.8,2428.5,3.21397754]
[1725461257706,0.00617754,2428.9,2428.5,3.62576754]
[1725461258019,0.41790754,2428.9,2428.5,3.21397754]
[1725461258305,0.00617754,2428.9,2428.8,3.2078]
[1725461258902,0.41789754,2428.9,2428.8,3.2078]
[1725461259609,0.41178,2428.6,2428.5,0.00617754]
[1725461259802,0.00617754,2428.9,2428.5,3.21397754]
[1725461260003,0.41175,2428.8,2428.5,3.21397754]
[1725461260308,0.00617754,2428.9,2428.5,3.21397754]
[1725461260501,0.00617754,2428.9,2428.8,3.2078]
[1725461260699,0.00617754,2428.9,2428.8,3.61954]
[1725461261095,1.02906,2429.6,2428.8,7.73634]
[1725461261296,1.02902,2429.6,2429.0,3.2078]
[1725461261508,0.41169,2429.1,2429.0,3.2078]
[1725461261902,11.55772,2429.1,2429.0,3.2078]
[1725461262911,10.1168,2429.1,2428.5,0.00617754]
[1725461263116,1.44123,2428.6,2428.5,0.00617754]
[1725461263613,5.55883,2428.6,2428.5,0.00617754]
[1725461264006,0.41184,2428.2,2428.1,3.2078]
[1725461264203,1.59785292,2428.8,2428.1,3.2078]
[1725461264204,2.62722292,2428.8,2428.1,3.2078]
[1725461264412,2.13286705,2428.9,2428.7,3.2078]
[1725461264413,0.41173,2428.9,2428.7,3.2078]
[1725461264711,0.00617754,2429.3,2428.7,3.2078]
[1725461264915,0.00617754,2429.3,2428.8,0.00617754]
[1725461265105,0.00617754,2429.3,2429.2,3.2078]
[1725461265409,0.41154,2430.0,2429.5,0.41161]
[1725461265610,6.21439292,2430.3,2429.5,0.41161]
[1725461265611,3.207,2430.3,2429.9,3.2078]
[1725461266007,3.207,2430.5,2430.2,3.2078]
[1725461266316,2.33935292,2430.9,2430.1,0.00617754]
[1725461266317,0.00617754,2430.6,2430.1,0.00617754]
[1725461266510,0.00617754,2430.6,2430.3,3.2078]
[1725461267206,0.00617754,2430.6,2430.3,3.61929]
[1725461267511,0.00617754,2430.6,2430.3,3.2078]
[1725461267811,0.00617754,2430.6,2430.5,0.41145]
[1725461268011,0.41129,2431.5,2430.5,10.1144]
[1725461268200,0.41125,2431.7,2431.3,3.2078]
[1725461268402,0.41121,2432.0,2431.6,3.2078]
[1725461268598,5.92335292,2432.5,2431.6,3.2078]
[1725461268801,4.5350473,2432.5,2431.9,3.2078]
[1725461268999,0.4112,2432.0,2431.9,3.2078]
[1725461269200,0.4112,2432.0,2431.0,3.38136]
[1725461269201,1.60403046,2432.4,2431.5,3.2078]
[1725461269405,0.41118,2432.2,2431.7,0.00617754]
[1725461269808,0.00617754,2432.4,2431.7,0.00617754]
[1725461270007,0.41119,2432.1,2431.7,0.00617754]
[1725461270307,0.41123,2431.8,2431.7,0.00617754]
[1725461270711,10.52323,2431.8,2431.7,0.00617754]
[1725461270905,10.112,2431.8,2431.2,3.2078]
[1725461271208,1.02805,2431.9,2431.2,3.2078]
[1725461271410,0.4113,2431.5,2431.2,3.2078]
[1725461271712,0.3575,2431.7,2431.2,3.2078]
[1725461271899,0.3575,2431.7,2430.4,0.3707]
[1725461271900,4.23602,2431.5,2430.8,3.2078]
[1725461272100,0.41132,2431.3,2431.2,0.00617754]
[1725461272304,0.41139,2430.9,2430.8,3.2078]
[1725461272504,10.80565292,2431.5,2430.8,3.2078]
[1725461272505,0.41136,2431.1,2430.8,3.2078]
[1725461272707,4.80565292,2431.5,2430.8,3.2078]
[1725461272708,0.41139,2430.9,2430.8,3.2078]
[1725461273203,0.41139,2430.9,2430.4,3.2078]
[1725461273204,0.41141,2430.8,2430.4,3.2078]
[1725461273401,0.41137,2431.0,2430.7,3.2078]
[1725461273605,0.00617754,2431.1,2430.7,3.2078]
[1725461273912,0.41752754,2431.1,2430.7,3.2078]
[1725461274101,0.00617754,2431.1,2430.7,3.2078]
[1725461274511,0.00617754,2431.1,2430.7,3.61921]
[1725461274813,0.00617754,2431.1,2430.6,3.21397754]
[1725461275516,0.4114,2430.9,2430.6,3.21397754]
[1725461275718,0.41141,2430.8,2430.6,3.21397754]
[1725461275903,0.00617754,2431.1,2430.6,3.21397754]
[1725461276105,0.00617754,2431.1,2430.9,3.2078]
[1725461276507,0.41139,2430.9,2430.6,3.21397754]
[1725461276708,0.00617754,2431.1,2430.6,3.21397754]
[1725461276906,0.4114,2430.8,2430.6,3.21397754]
[1725461277317,0.41753754,2431.1,2430.6,3.21397754]
[1725461277519,0.00617754,2431.1,2430.6,3.21397754]
[1725461277709,0.41142,2430.7,2430.6,3.21397754]
[1725461278111,4.52582,2430.7,2430.6,3.21397754]
[1725461278317,0.41142,2430.7,2430.6,3.21397754]
[1725461279112,0.41141,2430.8,2430.6,3.21397754]
[1725461279319,1.03457754,2431.1,2430.6,3.21397754]
[1725461279508,0.41141,2430.8,2430.6,3.21397754]
[1725461279709,0.00617754,2431.1,2430.6,3.21397754]
[1725461279918,1.03456754,2431.1,2430.6,3.21397754]
[1725461280218,0.00617754,2431.1,2430.6,3.21397754]
[1725461280419,0.4114,2430.9,2430.6,3.21397754]
[1725461280616,0.4114,2430.8,2430.6,3.21397754]
[1725461280811,0.00617754,2431.1,2430.6,3.21397754]
[1725461281113,0.00617754,2431.1,2430.9,3.2078]
[1725461281220,0.00617754,2431.1,2430.9,3.61918]
[1725461281429,0.00617754,2431.1,2431.0,4.52497]
[1725461281612,3.207,2431.8,2431.0,4.1136]
[1725461281814,3.207,2432.0,2431.6,3.2078]
[1725461282116,5.55021435,2432.5,2431.6,3.2078]
[1725461282117,3.207,2432.2,2431.9,3.2078]
[1725461282418,3.2078,2433.0,2431.9,3.2078]
[1725461282419,1.59785292,2433.5,2432.1,3.2078]
[1725461282611,0.41115,2432.3,2432.2,3.2078]
[1725461283015,1.43903,2432.3,2432.2,3.2078]
[1725461283226,3.2078,2432.8,2432.0,0.00617754]
[1725461283227,0.41118,2432.2,2432.0,0.00617754]
[1725461283425,0.3865,2432.8,2432.0,0.00617754]
[1725461283426,1.4142,2432.8,2432.0,0.00617754]
[1725461283613,1.0278,2432.6,2432.0,0.00617754]
[1725461283818,0.41118,2432.1,2432.0,0.00617754]
[1725461284009,0.3865,2432.8,2432.0,0.00617754]
[1725461284010,1.02771,2432.7,2432.0,0.00617754]
[1725461284215,0.3865,2432.8,2432.0,0.00617754]
[1725461284419,0.41114,2432.4,2432.2,3.2078]
[1725461284816,0.41115,2432.3,2432.2,3.2078]
[1725461285222,0.41118,2432.1,2432.0,0.00617754]
[1725461285722,0.41118,2432.1,2432.0,10.11817754]
[1725461285922,0.00617754,2433.0,2432.1,1.02796]
[1725461286226,0.41720754,2433.0,2432.9,3.2078]
[1725461286610,0.00617754,2433.0,2432.9,3.2078]
[1725461287016,0.00617754,2433.0,2432.9,7.3182]
[1725461287827,0.41720754,2433.0,2432.9,3.2078]
[1725461288019,1.44478754,2433.0,2432.9,3.2078]
[1725461288320,0.41721754,2433.0,2432.8,3.2078]
[1725461288521,0.00617754,2433.0,2432.8,3.2078]
[1725461289125,0.00617754,2433.0,2432.8,3.61886]
[1725461289316,0.00617754,2433.0,2432.8,3.2078]
[1725461289718,0.41720754,2433.0,2432.8,3.2078]
[1725461289920,0.00617754,2433.0,2432.8,3.2078]
[1725461290214,0.41105,2432.9,2432.8,3.2078]
[1725461291129,0.00617754,2433.0,2432.9,0.41105]
[1725461291425,0.00617754,2433.0,2432.5,3.2078]
[1725461291426,0.4111,2432.6,2432.5,3.2078]
[1725461291825,22.1,2432.9,2432.2,3.2078]
[1725461291826,0.41112,2432.5,2432.2,3.2078]
[1725461292016,1.02774,2432.7,2432.0,0.00617754]
[1725461292017,4.23551,2432.7,2432.0,0.00617754]
[1725461292324,22.1,2432.9,2432.0,0.00617754]
[1725461292523,22.1,2432.9,2432.4,3.2078]
[1725461292820,22.1,2432.9,2432.3,3.2078]
[1725461292821,0.41109,2432.7,2432.3,3.2078]
[1725461293022,0.41111,2432.6,2432.3,3.2078]
[1725461293229,22.1,2432.9,2432.3,3.2078]
[1725461293431,0.36707754,2433.0,2432.6,3.2078]
[1725461293432,0.00617754,2433.0,2432.6,3.2078]
[1725461294226,0.00617754,2433.0,2432.9,3.2078]
[1725461294630,0.00617754,2433.0,2432.9,13.3182]
[1725461294838,0.00617754,2433.0,2432.9,13.72925]
[1725461295231,0.00617754,2433.0,2432.9,7.3182]
[1725461296636,0.00617754,2433.0,2432.9,13.3182]
[1725461296837,0.41720754,2433.0,2432.9,3.2078]
[1725461297235,1.44478754,2433.0,2432.9,3.2078]
[1725461297435,0.41720754,2433.0,2432.9,7.3182]
[1725461297635,0.41109,2432.7,2432.5,3.2078]
[1725461297945,0.4111,2432.6,2432.5,3.2078]
[1725461299049,1.43885,2432.6,2432.5,3.2078]
[1725461299339,23.53885,2432.6,2432.5,3.2078]
[1725461299940,32.83024347,2432.6,2432.0,0.00617754]
[1725461300144,0.41118,2432.1,2432.0,0.00617754]
[1725461300549,1.43914,2432.1,2432.0,0.00617754]
[1725461300855,5.55114,2432.1,2432.0,0.00617754]
[1725461301341,4.52318,2432.1,2432.0,0.00617754]
[1725461301650,0.41118,2432.1,2432.0,7.32597754]
[1725461301853,0.41118,2432.1,2432.0,0.00617754]
[1725461302043,5.55114,2432.1,2432.0,0.00617754]
[1725461302599,0.41128,2431.5,2431.4,3.2078]
[1725461302778,14.34776,2432.1,2430.2,1.02875]
[1725461302779,3.2078,2431.9,2430.9,3.2078]
[1725461302951,6.1778,2431.7,2430.6,3.2078]
[1725461303155,0.41146,2430.5,2430.3,3.2078]
[1725461303355,1.02835,2431.2,2430.3,3.2078]
[1725461303356,1.02847,2430.9,2430.3,7.3222]
[1725461303653,0.41145,2430.5,2430.4,0.00617754]
[1725461303847,0.00617754,2430.8,2430.4,0.00617754]
[1725461303848,0.38767754,2430.8,2430.4,0.00617754]
[1725461304046,0.41142,2430.7,2430.4,4.12057754]
[1725461304246,0.00617754,2430.8,2430.4,0.00617754]
[1725461304450,0.00617754,2430.8,2430.4,0.41764754]
[1725461304655,0.00617754,2430.8,2430.4,0.00617754]
[1725461304841,0.41145,2430.5,2430.4,0.00617754]
[1725461305041,0.41145,2430.5,2429.6,3.2078]
[1725461305248,0.41156,2429.9,2429.6,3.2078]
[1725461305554,0.41154,2430.0,2429.6,3.2078]
[1725461305755,6.1778,2430.6,2429.6,3.2078]
[1725461305756,3.2078,2430.3,2429.6,3.2078]
[1725461305945,0.41159,2429.7,2429.6,3.2078]
[1725461306250,1.02882,2430.1,2428.8,3.2078]
[1725461306251,3.9989,2429.9,2428.8,3.2078]
[1725461306450,2.97,2429.9,2429.1,3.2078]
[1725461306746,2.97,2429.9,2428.8,3.2078]
[1725461306747,0.41164,2429.5,2428.8,3.2078]
[1725461306950,3.21397754,2429.7,2428.8,3.2078]
[1725461307351,0.00617754,2429.7,2428.8,3.2078]
[1725461307855,0.41168,2429.2,2428.8,3.2078]
[1725461308147,3.2078,2429.5,2428.5,3.2078]
[1725461308345,3.2078,2429.5,2428.2,3.2078]
[1725461308346,0.4117,2429.1,2428.2,3.2078]
[1725461308549,0.41167,2429.2,2428.5,3.2078]
[1725461308756,0.41167,2429.2,2427.9,3.7088]
[1725461308757,0.3849,2429.4,2428.8,3.2078]
[1725461309250,0.00617754,2429.7,2428.8,3.2078]
[1725461309453,0.41162,2429.5,2428.8,3.2078]
[1725461309648,0.00617754,2429.7,2428.8,3.2078]
[1725461309857,0.41777754,2429.7,2428.8,3.2078]
[1725461310042,0.00617754,2429.7,2428.8,3.2078]
[1725461310248,0.00617754,2429.7,2428.3,0.20568473]
[1725461310249,0.00617754,2429.7,2429.1,3.2078]
[1725461310750,0.00617754,2429.7,2429.4,3.2078]
[1725461312082,0.41161,2429.6,2429.4,3.2078]
[1725461312259,0.00617754,2429.7,2429.4,3.2078]
[1725461312847,0.41148,2430.4,2429.5,4.52762]
[1725461313051,0.381,2430.5,2429.8,3.2078]
[1725461313251,3.61845,2430.6,2430.1,3.2078]
[1725461313455,3.207,2430.6,2430.1,3.2078]
[1725461313643,0.41146,2430.5,2430.1,3.2078]
[1725461313847,0.00617754,2430.5,2430.1,3.21397754]
[1725461314352,0.4115,2430.2,2430.1,0.00617754]
[1725461315454,0.4118,2432.2,2431.7,0.54171619]
[1725461315656,0.41091,2433.8,2432.1,6.1778]
[1725461315958,0.41091,2433.8,2431.8,2.97]
[1725461315959,1.5410882,2432.9,2432.6,3.2078]
[1725461316144,1.5410882,2432.7,2432.6,3.6189]
[1725461316349,1.5410882,2433.2,2432.6,3.2078]
[1725461316554,1.5410882,2433.2,2432.9,3.2078]
[1725461316555,0.00616472,2433.1,2432.9,3.2078]
[1725461316767,1.54725292,2433.1,2432.9,3.2078]
[1725461316960,0.00616472,2433.1,2432.9,9.2078]
[1725461317255,0.00616472,2433.1,2433.0,7.1104]
[1725461317455,0.00616472,2433.1,2433.0,1.1104]
[1725461317646,0.00616472,2433.1,2433.0,7.52143]
[1725461317851,0.00616472,2433.1,2433.0,4.1104]
[1725461318055,0.00616472,2433.1,2432.9,3.2078]
[1725461318252,4.54725292,2433.1,2432.9,3.2078]
[1725461318854,0.00616472,2433.1,2432.9,3.2078]
[1725461320159,0.00616472,2433.1,2432.9,3.61884]
[1725461320348,0.00616472,2433.1,2432.9,3.2078]
[1725461320549,0.00616472,2433.1,2432.7,0.00616472]
[1725461320550,0.41106,2432.8,2432.7,0.00616472]
[1725461320754,4.5410882,2432.8,2432.7,0.00616472]
[1725461320954,4.9521482,2432.8,2432.7,0.00616472]
[1725461321255,4.5410882,2432.8,2432.7,0.00616472]
[1725461321953,4.9521482,2432.8,2432.7,0.00616472]
[1725461323053,4.5410882,2432.8,2432.7,0.00616472]
[1725461323561,4.9521482,2432.8,2432.7,0.00616472]
[1725461324070,4.5410882,2432.8,2432.7,0.00616472]
[1725461324452,10.9521482,2432.8,2432.7,0.00616472]
[1725461325150,44.1410882,2432.8,2432.7,0.00616472]
[1725461325357,4.5410882,2432.8,2432.7,0.00616472]
[1725461325852,4.9521482,2432.8,2432.7,0.00616472]
[1725461326360,10.9521482,2432.8,2432.7,0.00616472]
[1725461326666,4.9521482,2432.8,2432.7,0.00616472]
[1725461326860,4.5410882,2432.8,2432.7,0.00616472]
[1725461327064,4.9521482,2432.8,2432.7,0.00616472]
[1725461327555,5.9798182,2432.8,2432.7,0.00616472]
[1725461327755,0.4112,2432.1,2431.8,3.2078]
[1725461328059,0.4112,2432.1,2430.3,3.4148]
[1725461328060,2.97,2431.9,2430.3,3.4148]
[1725461328254,4.53492348,2430.7,2430.3,3.2078]
[1725461328467,0.3885,2431.8,2429.7,3.2078]
[1725461328468,1.02873,2430.3,2429.7,3.2078]
[1725461328761,1.02873,2430.3,2428.9,0.207]
[1725461328762,1.02855,2430.8,2429.3,3.2078]
[1725461328763,4.53492348,2430.1,2429.3,3.2078]
[1725461328962,4.53492348,2430.1,2429.9,3.2078]
[1725461329564,0.00616472,2430.2,2429.9,3.61935]
[1725461329862,4.94647348,2430.0,2429.8,0.00616472]
[1725461330058,0.00616472,2430.2,2429.9,3.2078]
[1725461330252,0.00616472,2430.2,2430.1,0.41152]
[1725461330454,0.00616472,2430.2,2430.1,4.52672]
[1725461330656,0.00616472,2430.2,2430.1,10.52672]
[1725461331456,0.3829,2431.5,2430.4,0.41147]
[1725461331457,0.4114,2430.8,2430.4,0.41147]
[1725461331660,4.94631348,2430.9,2430.5,3.61925]
[1725461331862,4.94631348,2430.9,2430.8,3.2078]
[1725461331863,4.53492348,2430.9,2430.8,3.2078]
[1725461332065,0.41136,2431.1,2430.8,3.2078]
[1725461332360,0.41138,2431.0,2430.8,3.2078]
[1725461332556,0.4114,2430.8,2430.4,3.2078]
[1725461332863,4.94633348,2430.8,2430.4,3.61927]
[1725461333068,4.53492348,2430.7,2430.4,3.61927]
[1725461333269,0.41145,2430.5,2430.4,3.2078]
[1725461333457,0.41145,2430.5,2430.1,3.2078]
[1725461333458,4.94638348,2430.5,2430.1,3.2078]
[1725461333656,1.02843,2431.0,2430.1,3.2078]
[1725461333956,0.41154,2430.0,2429.8,0.00616472]
[1725461334155,4.53492348,2430.1,2429.8,0.00616472]
[1725461334365,0.41156,2429.9,2429.8,0.00616472]
[1725461334560,0.41154,2430.0,2429.8,0.00616472]
[1725461334866,4.53492348,2429.9,2429.8,0.00616472]
[1725461335057,1.02873,2430.3,2429.8,0.00616472]
[1725461335058,4.94645348,2430.1,2429.8,0.41773472]
[1725461335260,4.94645348,2430.1,2430.0,3.2078]
[1725461335261,4.53492348,2430.1,2430.0,3.2078]
[1725461336060,4.94644348,2430.1,2430.0,3.2078]
[1725461336661,0.41156,2429.9,2429.8,0.00616472]
[1725461336863,5.97538348,2429.9,2429.8,0.00616472]
[1725461337462,4.94648348,2429.9,2429.8,0.00616472]
[1725461338366,5.97538348,2429.9,2429.8,0.00616472]
[1725461338567,0.41162,2429.6,2429.2,3.2078]
[1725461338866,4.53492348,2429.4,2429.2,3.2078]
[1725461339063,4.53492348,2429.4,2429.2,3.61947]
[1725461339261,0.41161,2429.6,2429.2,3.61947]
[1725461339663,4.53492348,2429.5,2429.2,3.21396472]
[1725461340069,0.00616472,2429.6,2429.2,3.21396472]
[1725461340269,4.5410882,2429.6,2429.3,0.41166]
[1725461340665,4.53492348,2429.5,2429.2,3.62562472]
[1725461340860,4.5410882,2429.6,2429.2,3.62562472]
[1725461341068,0.41166,2429.3,2429.2,3.21396472]
[1725461341263,4.53492348,2429.4,2429.2,3.21396472]
[1725461341659,4.53492348,2429.4,2429.2,3.62563472]
[1725461342065,4.53492348,2429.4,2429.3,0.41166]
[1725461342369,0.41778472,2429.6,2429.3,0.41166]
[1725461342678,4.53492348,2429.5,2429.2,3.21396472]
[1725461342969,0.00616472,2429.6,2429.2,13.32996472]
[1725461343171,0.00616472,2429.6,2429.5,3.2078]
[1725461343367,0.00616472,2429.6,2429.2,0.00616472]
[1725461343368,0.41778472,2429.6,2429.3,0.41165]
[1725461343767,0.41778472,2429.6,2429.5,3.2078]
[1725461344274,4.9527082,2429.6,2429.5,3.2078]
[1725461344464,0.00616472,2429.6,2429.5,9.2078]
[1725461344666,0.00616472,2429.6,2429.5,3.61942]
[1725461344862,0.00616472,2429.6,2429.5,3.2078]
[1725461345172,4.9526982,2429.6,2429.5,3.2078]
[1725461345471,0.41166,2429.3,2429.2,3.21396472]
[1725461345673,4.53492348,2429.5,2429.2,3.21396472]
[1725461345869,4.94655348,2429.5,2429.3,0.41165]
[1725461346064,4.53492348,2429.5,2429.2,3.21396472]
[1725461346266,0.00616472,2429.6,2429.5,0.41162]
[1725461346468,0.00616472,2429.6,2429.5,3.61942]
[1725461347466,4.9526982,2429.6,2429.5,3.2078]
[1725461347971,0.41164,2429.4,2429.2,3.62562472]
[1725461348173,4.94658348,2429.3,2429.2,3.21396472]
[1725461349071,0.00616472,2429.6,2429.3,0.41165]
[1725461349275,0.00616472,2429.6,2429.2,3.21396472]
[1725461349276,5.97573348,2429.3,2429.2,3.21396472]
[1725461349469,4.94658348,2429.3,2429.2,3.21396472]
[1725461349669,4.53492348,2429.3,2429.2,3.62563472]
[1725461350064,4.94658348,2429.3,2429.2,3.21396472]
[1725461350266,4.53492348,2429.3,2429.2,3.62563472]
[1725461350678,4.94658348,2429.3,2429.2,3.21396472]
[1725461351272,5.97573348,2429.3,2429.2,3.21396472]
[1725461351672,4.94658348,2429.3,2429.2,3.21396472]
[1725461352770,5.97573348,2429.3,2429.2,3.21396472]
[1725461352978,0.41174,2428.8,2428.7,3.2078]
[1725461353186,0.41174,2428.8,2428.3,3.2078]
[1725461353187,4.53492348,2428.8,2428.3,3.2078]
[1725461353385,1.03520472,2429.6,2428.7,1.0294]
[1725461353580,0.00616472,2429.6,2429.0,3.2078]
[1725461353776,4.53492348,2429.5,2429.3,3.2078]
[1725461354078,0.00616472,2429.6,2429.5,0.41162]
[1725461354774,0.41162,2429.5,2429.4,0.41163]
[1725461354983,0.00616472,2429.6,2429.5,0.41162]
[1725461355582,0.00616472,2429.6,2429.5,11.55668]
[1725461355778,0.41152,2430.2,2429.6,1.02899]
[1725461355977,2.97,2430.8,2430.0,3.2078]
[1725461356282,2.97,2430.8,2429.1,3.1183108]
[1725461356283,4.53492348,2430.4,2430.3,3.61928]
[1725461356471,4.94639348,2430.4,2430.3,3.2078]
[1725461356670,4.94639348,2430.4,2429.7,0.41158]
[1725461356671,5.56360348,2430.4,2429.7,0.41158]
[1725461356875,2.46904,2430.2,2430.1,0.00616472]
[1725461357077,7.00396348,2430.2,2430.1,0.00616472]
[1725461357275,0.41159,2429.7,2429.6,3.2078]
[1725461357477,0.41159,2429.7,2429.4,0.41163]
[1725461357478,4.94651348,2429.7,2429.5,0.41162]
[1725461357679,4.94651348,2429.7,2429.5,3.61942]
[1725461357877,0.41162,2429.5,2429.3,0.41165]
[1725461358084,0.41166,2429.3,2429.2,3.2078]
[1725461358270,0.41169,2429.2,2429.0,0.4117]
[1725461358578,0.41169,2429.2,2428.9,3.2078]
[1725461358579,0.41168,2429.2,2428.9,3.2078]
[1725461358888,4.5410882,2429.3,2428.9,3.2078]
[1725461358889,0.00616472,2429.3,2428.9,3.2078]
[1725461359180,4.53492348,2429.1,2428.9,3.61952]
[1725461359367,4.53492348,2429.1,2429.0,0.41171]
[1725461359573,4.53492348,2429.1,2428.9,3.2078]
[1725461359574,0.00616472,2429.3,2429.2,0.41167]
[1725461359774,4.5410882,2429.3,2429.2,3.61947]
[1725461359986,0.00616472,2429.3,2429.2,15.79465]
[1725461360176,0.3548,2430.4,2429.7,0.41158]
[1725461360497,4.53492348,2429.9,2429.8,0.41157]